fUSD/lending_fUSD_20250809
["ID","MTS","AMOUNT","RATE_DAILY","PERIOD"]
[378155715,1754751047144,-400.0,0.00024931,2]
[378155716,1754751047153,-199.34974282,0.00024931,2]
[378155717,1754751047163,-400.0,0.00024931,2]
[378155718,1754751047172,-400.0,0.00024931,2]
[378155719,1754751047182,-400.0,0.00024931,2]
[378155720,1754751047192,-400.0,0.00024931,2]
[378155721,1754751047201,-400.0,0.00024931,2]
[378155722,1754751047210,-196.95315699,0.00024931,2]
[378155723,1754751047219,-400.0,0.00024931,2]
[378155724,1754751047229,-400.0,0.00024931,2]
[378155725,1754751047238,-400.0,0.00024931,2]
[378155726,1754751047248,-400.0,0.00024931,2]
[378155727,1754751047258,-400.0,0.00024931,2]
[378155728,1754751047267,-400.0,0.00024931,2]
[378155729,1754751047276,-400.0,0.00024931,2]
[378155730,1754751047286,-400.0,0.00024931,2]
[378155731,1754751047296,-400.0,0.00024931,2]
[378155732,1754751047305,-400.0,0.00024931,2]
[378155733,1754751047316,-400.0,0.00024931,2]
[378155734,1754751047327,-390.21448529,0.00024931,2]
[378155735,1754751047336,-400.0,0.00024931,2]
[378155736,1754751047346,-400.0,0.00024931,2]
[378155737,1754751047355,-400.0,0.00024931,2]
[378155738,1754751047365,-400.0,0.00024931,2]
[378155739,1754751047374,-400.0,0.00024931,2]
[378155740,1754751047384,-400.0,0.00024931,2]
[378155741,1754751047393,-400.0,0.00024931,2]
[378155742,1754751047403,-400.0,0.00024931,2]
[378155743,1754751047413,-400.0,0.00024931,2]
[378155744,1754751047422,-400.0,0.00024931,2]
[378155745,1754751047433,-738.097637,0.00024931,2]
[378155746,1754751047446,-635.64,0.00024931,2]
[378155747,1754751047457,-400.0,0.00024931,2]
[378155748,1754751047466,-400.0,0.00024931,2]
[378155749,1754751047476,-400.0,0.00024931,2]
[378155750,1754751047486,-1000.0,0.00024931,2]
[378155751,1754751047495,-400.0,0.00024931,2]
[378155752,1754751047505,-446.43,0.00024931,2]
[378155753,1754751047514,-1517.113515,0.00024931,2]
[378155754,1754751047523,-400.0,0.00024931,2]
[378155755,1754751047532,-400.0,0.00024931,2]
[378155756,1754751047542,-400.0,0.00024931,2]
[378155757,1754751047551,-1419.597983,0.00024931,2]
[378155758,1754751047561,-400.0,0.00024931,2]
[378155759,1754751047571,-400.0,0.00024931,2]
[378155760,1754751047580,-400.0,0.00024931,2]
[378155761,1754751047589,-400.0,0.00024931,2]
[378155762,1754751047599,-400.0,0.00024931,2]
[378155763,1754751047608,-400.0,0.00024931,2]
[378155764,1754751047617,-400.0,0.00024931,2]
[378155765,1754751047628,-400.0,0.00024931,2]
[378155766,1754751047639,-400.0,0.00024931,2]
[378155767,1754751047649,-400.0,0.00024931,2]
[378155768,1754751047658,-400.0,0.00024931,2]
[378155769,1754751047668,-400.0,0.00024931,2]
[378155770,1754751047678,-400.0,0.00024931,2]
[378155771,1754751047688,-400.0,0.00024931,2]
[378155772,1754751047697,-400.0,0.00024931,2]
[378155773,1754751047708,-400.0,0.00024931,2]
[378155774,1754751047718,-400.0,0.00024931,2]
[378155775,1754751047729,-400.0,0.00024931,2]
[378155776,1754751047738,-400.0,0.00024931,2]
[378155777,1754751047747,-568.48,0.00024931,2]
[378155778,1754751047757,-400.0,0.00024931,2]
[378155779,1754751047766,-400.0,0.00024931,2]
[378155780,1754751047775,-400.0,0.00024931,2]
[378155781,1754751047784,-400.0,0.00024931,2]
[378155782,1754751047793,-506.74710616,0.00024931,2]
[378155783,1754751047803,-400.0,0.00024931,2]
[378155784,1754751047812,-400.0,0.00024931,2]
[378155785,1754751047822,-400.0,0.00024931,2]
[378155786,1754751047832,-400.0,0.00024931,2]
[378155787,1754751047843,-400.0,0.00024931,2]
[378155788,1754751047854,-242.64074686,0.00024931,2]
[378155789,1754751047863,-400.0,0.00024931,2]
[378155790,1754751047873,-400.0,0.00024931,2]
[378155791,1754751047882,-400.0,0.00024931,2]
[378155792,1754751047892,-400.0,0.00024931,2]
[378155793,1754751047901,-400.0,0.00024931,2]
[378155794,1754751047911,-400.0,0.00024931,2]
[378155795,1754751047920,-271.1295678,0.00024931,2]
[378155796,1754751047929,-457.68,0.00024931,2]
[378155797,1754751047939,-400.0,0.00024931,2]
[378155798,1754751047948,-400.0,0.00024931,2]
[378155799,1754751047958,-400.0,0.00024931,2]
[378155800,1754751047967,-400.0,0.00024931,2]
[378155801,1754751047977,-400.0,0.00024931,2]
[378155802,1754751047987,-400.0,0.00024931,2]
[378155803,1754751047996,-400.0,0.00024931,2]
[378155804,1754751048005,-400.0,0.00024931,2]
[378155805,1754751048016,-400.0,0.00024931,2]
[378155806,1754751048025,-400.0,0.00024931,2]
[378155807,1754751048035,-400.0,0.00024931,2]
[378155808,1754751048044,-408.43,0.00024931,2]
[378155809,1754751048054,-444.24,0.00024931,2]
[378155810,1754751048064,-400.0,0.00024931,2]
[378155811,1754751048073,-400.0,0.00024931,2]
[378155812,1754751048082,-414.8413782,0.00024931,2]
[378155813,1754751048092,-400.0,0.00024931,2]
[378155814,1754751048102,-400.0,0.00024931,2]
[378155815,1754751048111,-270.22654899,0.00024931,2]
[378155816,1754751048121,-400.0,0.00024931,2]
[378155817,1754751048130,-252.53589116,0.00024931,2]
[378155818,1754751048140,-400.0,0.00024931,2]
[378155819,1754751048150,-400.0,0.00024931,2]
[378155820,1754751048160,-400.0,0.00024931,2]
[378155821,1754751048170,-400.0,0.00024931,2]
[378155822,1754751048179,-400.0,0.00024931,2]
[378155823,1754751048188,-400.0,0.00024931,2]
[378155824,1754751048197,-400.0,0.00024931,2]
[378155825,1754751048206,-481.32,0.00024931,2]
[378155826,1754751048216,-400.0,0.00024931,2]
[378155827,1754751048225,-400.0,0.00024931,2]
[378155828,1754751048235,-400.0,0.00024931,2]
[378155829,1754751048245,-400.0,0.00024931,2]
[378155830,1754751048254,-400.0,0.00024931,2]
[378155831,1754751048264,-400.0,0.00024931,2]
[378155832,1754751048273,-539.12,0.00024931,2]
[378155833,1754751048283,-1940.23,0.00024931,2]
[378155834,1754751048293,-400.0,0.00024931,2]
[378155835,1754751048302,-400.0,0.00024931,2]
[378155836,1754751048311,-400.0,0.00024931,2]
[378155837,1754751048321,-400.0,0.00024931,2]
[378155838,1754751048330,-541.75051466,0.00024931,2]
[378155839,1754751048339,-795.08,0.00024931,2]
[378155840,1754751048349,-400.0,0.00024931,2]
[378155841,1754751048359,-634.3,0.00024931,2]
[378155842,1754751048369,-400.0,0.00024931,2]
[378155843,1754751048379,-609.58,0.00024931,2]
[378155844,1754751048388,-400.0,0.00024931,2]
[378155845,1754751048398,-400.0,0.00024931,2]
[378155846,1754751048408,-400.0,0.00024931,2]
[378155847,1754751048417,-498.44217096,0.00024931,2]
[378155848,1754751048427,-403.19,0.00024931,2]
[378155849,1754751048437,-400.0,0.00024931,2]
[378155850,1754751048447,-400.0,0.00024931,2]
[378155851,1754751048456,-400.0,0.00024931,2]
[378155852,1754751048467,-496.34,0.00024931,2]
[378155853,1754751048479,-400.0,0.00024931,2]
[378155854,1754751048489,-227.73207491,0.00024931,2]
[378155855,1754751048499,-579.16,0.00024931,2]
[378155856,1754751048508,-234.82972247,0.00024931,2]
[378155857,1754751048518,-400.0,0.00024931,2]
[378155858,1754751048528,-406.16,0.00024931,2]
[378155859,1754751048537,-400.0,0.00024931,2]
[378155860,1754751048547,-400.0,0.00024931,2]
[378155861,1754751048557,-445.75,0.00024931,2]
[378155862,1754751048566,-485.87,0.00024931,2]
[378155863,1754751048576,-400.0,0.00024931,2]
[378155864,1754751048586,-400.0,0.00024931,2]
[378155865,1754751048596,-400.0,0.00024931,2]
[378155866,1754751048606,-517.95,0.00024931,2]
[378155867,1754751048616,-469.88970029,0.00024931,2]
[378155868,1754751048625,-595.34,0.00024931,2]
[378155869,1754751048636,-400.0,0.00024931,2]
[378155870,1754751048646,-400.0,0.00024931,2]
[378155871,1754751048655,-400.0,0.00024931,2]
[378155872,1754751048664,-400.0,0.00024931,2]
[378155873,1754751048675,-400.0,0.00024931,2]
[378155874,1754751048684,-400.0,0.00024931,2]
[378155875,1754751048693,-414.61810284,0.00024931,2]
[378155876,1754751048703,-587.5,0.00024931,2]
[378155877,1754751048713,-457.72,0.00024931,2]
[378155878,1754751048723,-400.0,0.00024931,2]
[378155879,1754751048732,-400.0,0.00024931,2]
[378155880,1754751048742,-400.0,0.00024931,2]
[378155881,1754751048751,-480.44,0.00024931,2]
[378155882,1754751048761,-400.0,0.00024931,2]
[378155883,1754751048770,-530.35,0.00024931,2]
[378155884,1754751048780,-635.17,0.00024931,2]
[378155885,1754751048789,-400.0,0.00024931,2]
[378155886,1754751048799,-400.0,0.00024931,2]
[378155887,1754751048809,-400.0,0.00024931,2]
[378155888,1754751048819,-437.3,0.00024931,2]
[378155889,1754751048828,-400.0,0.00024931,2]
[378155890,1754751048838,-583.26,0.00024931,2]
[378155891,1754751048847,-718.2,0.00024931,2]
[378155892,1754751048856,-433.09,0.00024931,2]
[378155893,1754751048866,-400.0,0.00024931,2]
[378155894,1754751048876,-400.0,0.00024931,2]
[378155895,1754751048886,-400.0,0.00024931,2]
[378155896,1754751048896,-400.0,0.00024931,2]
[378155897,1754751048905,-400.0,0.00024931,2]
[378155898,1754751048915,-174.2539633,0.00024931,2]
[378155899,1754751048925,-400.0,0.00024931,2]
[378155900,1754751048934,-400.0,0.00024931,2]
[378155901,1754751048944,-528.73,0.00024931,2]
[378155902,1754751048954,-400.0,0.00024931,2]
[378155903,1754751048964,-400.0,0.00024931,2]
[378155904,1754751048974,-422.74,0.00024931,2]
[378155905,1754751048984,-400.0,0.00024931,2]
[378155906,1754751048993,-400.0,0.00024931,2]
[378155907,1754751049003,-400.0,0.00024931,2]
[378155908,1754751049012,-400.0,0.00024931,2]
[378155909,1754751049022,-400.0,0.00024931,2]
[378155910,1754751049032,-400.0,0.00024931,2]
[378155911,1754751049041,-400.0,0.00024931,2]
[378155912,1754751049051,-577.25,0.00024931,2]
[378155913,1754751049060,-400.0,0.00024931,2]
[378155914,1754751049070,-468.95,0.00024931,2]
[378155915,1754751049079,-538.51,0.00024931,2]
[378155916,1754751049089,-241.4269578,0.00024931,2]
[378155917,1754751049099,-400.0,0.00024931,2]
[378155918,1754751049108,-400.0,0.00024931,2]
[378155919,1754751049117,-456.85,0.00024931,2]
[378155920,1754751049126,-1069.78,0.00024931,2]
[378155921,1754751049136,-505.04191088,0.00024931,2]
[378155922,1754751049146,-400.0,0.00024931,2]
[378155923,1754751049156,-400.0,0.00024931,2]
[378155924,1754751049165,-781.62,0.00024931,2]
[378155925,1754751049176,-834.52,0.00024931,2]
[378155926,1754751049185,-400.0,0.00024931,2]
[378155927,1754751049195,-531.37,0.00024931,2]
[378155928,1754751049205,-465.45,0.00024931,2]
[378155929,1754751049214,-400.0,0.00024931,2]
[378155930,1754751049223,-400.0,0.00024931,2]
[378155931,1754751049233,-629.49,0.00024931,2]
[378155932,1754751049528,-400.0,0.00024931,2]
[378155933,1754751049542,-400.0,0.00024931,2]
[378155934,1754751049552,-540.95,0.00024931,2]
[378155935,1754751049561,-400.0,0.00024931,2]
[378155936,1754751049570,-400.0,0.00024931,2]
[378155937,1754751049580,-400.0,0.00024931,2]
[378155938,1754751049589,-603.33,0.00024931,2]
[378155939,1754751049598,-400.0,0.00024931,2]
[378155940,1754751049608,-614.43,0.00024931,2]
[378155941,1754751049617,-596.59,0.00024931,2]
[378155942,1754751049627,-400.0,0.00024931,2]
[378155943,1754751049639,-545.43,0.00024931,2]
[378155944,1754751049648,-400.0,0.00024931,2]
[378155945,1754751049657,-528.69,0.00024931,2]
[378155946,1754751049667,-400.0,0.00024931,2]
[378155947,1754751049678,-564.42,0.00024931,2]
[378155948,1754751049688,-400.0,0.00024931,2]
[378155949,1754751049698,-400.0,0.00024931,2]
[378155950,1754751049708,-400.0,0.00024931,2]
[378155951,1754751049720,-455.5,0.00024931,2]
[378155952,1754751049730,-554.36,0.00024931,2]
[378155953,1754751049739,-561.98,0.00024931,2]
[378155954,1754751049749,-400.0,0.00024931,2]
[378155955,1754751049758,-400.0,0.00024931,2]
[378155956,1754751049767,-400.0,0.00024931,2]
[378155957,1754751049777,-564.22,0.00024931,2]
[378155958,1754751049786,-400.0,0.00024931,2]
[378155959,1754751049795,-400.0,0.00024931,2]
[378155960,1754751049805,-491.45,0.00024931,2]
[378155961,1754751049815,-400.0,0.00024931,2]
[378155962,1754751049824,-444.58,0.00024931,2]
[378155963,1754751049838,-400.0,0.00024931,2]
[378155964,1754751049848,-400.0,0.00024931,2]
[378155965,1754751049859,-400.0,0.00024931,2]
[378155966,1754751049869,-400.0,0.00024931,2]
[378155967,1754751049880,-400.0,0.00024931,2]
[378155968,1754751049891,-445.88,0.00024931,2]
[378155969,1754751049902,-611.71,0.00024931,2]
[378155970,1754751049911,-400.0,0.00024931,2]
[378155971,1754751049922,-400.0,0.00024931,2]
[378155972,1754751049931,-400.0,0.00024931,2]
[378155973,1754751049940,-412.18,0.00024931,2]
[378155974,1754751049950,-490.68,0.00024931,2]
[378155975,1754751049959,-400.0,0.00024931,2]
[378155976,1754751049968,-400.0,0.00024931,2]
[378155977,1754751049978,-400.0,0.00024931,2]
[378155978,1754751049988,-400.0,0.00024931,2]
[378155979,1754751049997,-400.0,0.00024931,2]
[378155980,1754751050007,-389.27244214,0.00024931,2]
[378155981,1754751050016,-808.34,0.00024931,2]
[378155982,1754751050025,-724.83,0.00024931,2]
[378155983,1754751050035,-496.01,0.00024931,2]
[378155984,1754751050044,-244.70526551,0.00024931,2]
[378155985,1754751050054,-400.0,0.00024931,2]
[378155986,1754751050064,-612.7,0.00024931,2]
[378155987,1754751050075,-400.0,0.00024931,2]
[378155988,1754751050085,-400.0,0.00024931,2]
[378155989,1754751050095,-521.55,0.00024931,2]
[378155990,1754751050104,-451.75,0.00024931,2]
[378155991,1754751050115,-400.0,0.00024931,2]
[378155992,1754751050125,-400.0,0.00024931,2]
[378155993,1754751050135,-400.0,0.00024931,2]
[378155994,1754751050146,-400.0,0.00024931,2]
[378155995,1754751050155,-400.0,0.00024931,2]
[378155996,1754751050165,-400.0,0.00024931,2]
[378155997,1754751050174,-400.0,0.00024931,2]
[378155998,1754751050183,-400.0,0.00024931,2]
[378155999,1754751050194,-400.0,0.00024931,2]
[378156000,1754751050204,-584.68,0.00024931,2]
[378156001,1754751050213,-400.0,0.00024931,2]
[378156002,1754751050223,-400.0,0.00024931,2]
[378156003,1754751050233,-400.0,0.00024931,2]
[378156004,1754751050243,-400.0,0.00024931,2]
[378156005,1754751050253,-400.0,0.00024931,2]
[378156006,1754751050262,-400.0,0.00024931,2]
[378156007,1754751050272,-566.24,0.00024931,2]
[378156008,1754751050281,-400.0,0.00024931,2]
[378156009,1754751050290,-400.0,0.00024931,2]
[378156010,1754751050300,-400.0,0.00024931,2]
[378156011,1754751050310,-400.0,0.00024931,2]
[378156012,1754751050320,-400.0,0.00024931,2]
[378156013,1754751050329,-1050.66,0.00024931,2]
[378156014,1754751050339,-400.0,0.00024931,2]
[378156015,1754751050348,-400.0,0.00024931,2]
[378156016,1754751050357,-428.61,0.00024931,2]
[378156017,1754751050367,-562.08,0.00024931,2]
[378156018,1754751050376,-400.0,0.00024931,2]
[378156019,1754751050386,-400.0,0.00024931,2]
[378156020,1754751050396,-400.0,0.00024931,2]
[378156021,1754751050405,-400.0,0.00024931,2]
[378156022,1754751050415,-445.5,0.00024931,2]
[378156023,1754751050425,-400.0,0.00024931,2]
[378156024,1754751050435,-400.0,0.00024931,2]
[378156025,1754751050444,-400.0,0.00024931,2]
[378156026,1754751050454,-550.0,0.00024931,2]
[378156027,1754751050463,-400.0,0.00024931,2]
[378156028,1754751050473,-400.0,0.00024931,2]
[378156029,1754751050482,-629.35,0.00024931,2]
[378156030,1754751050492,-400.0,0.00024931,2]
[378156031,1754751050503,-446.22,0.00024931,2]
[378156032,1754751050513,-400.0,0.00024931,2]
[378156033,1754751050522,-487.78,0.00024931,2]
[378156034,1754751050531,-400.0,0.00024931,2]
[378156035,1754751050541,-400.0,0.00024931,2]
[378156036,1754751050551,-400.0,0.00024931,2]
[378156037,1754751050560,-400.0,0.00024931,2]
[378156038,1754751050570,-400.0,0.00024931,2]
[378156039,1754751050579,-400.0,0.00024931,2]
[378156040,1754751050589,-400.0,0.00024931,2]
[378156041,1754751050598,-518.59,0.00024931,2]
[378156042,1754751050608,-400.0,0.00024931,2]
[378156043,1754751050617,-400.0,0.00024931,2]
[378156044,1754751050627,-400.0,0.00024931,2]
[378156045,1754751050640,-506.36,0.00024931,2]
[378156046,1754751050649,-400.0,0.00024931,2]
[378156047,1754751050659,-400.0,0.00024931,2]
[378156048,1754751050669,-540.54,0.00024931,2]
[378156049,1754751050680,-400.0,0.00024931,2]
[378156050,1754751050689,-1173.43,0.00024931,2]
[378156051,1754751050700,-400.0,0.00024931,2]
[378156052,1754751050710,-400.0,0.00024931,2]
[378156053,1754751050719,-400.0,0.00024931,2]
[378156054,1754751050729,-400.0,0.00024931,2]
[378156055,1754751050738,-400.0,0.00024931,2]
[378156056,1754751050748,-400.0,0.00024931,2]
[378156057,1754751050757,-400.0,0.00024931,2]
[378156058,1754751050767,-400.0,0.00024931,2]
[378156059,1754751050776,-400.0,0.00024931,2]
[378156060,1754751050785,-400.0,0.00024931,2]
[378156061,1754751050795,-400.0,0.00024931,2]
[378156062,1754751050804,-894.92,0.00024931,2]
[378156063,1754751050813,-422.37899205,0.00024931,2]
[378156064,1754751050823,-400.0,0.00024931,2]
[378156065,1754751050832,-400.0,0.00024931,2]
[378156066,1754751050842,-400.0,0.00024931,2]
[378156067,1754751050851,-400.0,0.00024931,2]
[378156068,1754751050860,-442.61871072,0.00024931,2]
[378156069,1754751050869,-400.0,0.00024931,2]
[378156070,1754751050879,-493.47,0.00024931,2]
[378156071,1754751050888,-562.58,0.00024931,2]
[378156072,1754751050898,-2203.04,0.00024931,2]
[378156073,1754751050910,-400.0,0.00024931,2]
[378156074,1754751050921,-274.56680348,0.00024931,2]
[378156075,1754751050931,-616.34,0.00024931,2]
[378156076,1754751050941,-400.0,0.00024931,2]
[378156077,1754751050952,-400.0,0.00024931,2]
[378156078,1754751050962,-400.0,0.00024931,2]
[378156079,1754751050973,-400.0,0.00024931,2]
[378156080,1754751050984,-400.0,0.00024931,2]
[378156081,1754751050994,-562.02,0.00024931,2]
[378156082,1754751051003,-427.72,0.00024931,2]
[378156083,1754751051013,-460.14,0.00024931,2]
[378156084,1754751051022,-400.0,0.00024931,2]
[378156085,1754751051032,-400.0,0.00024931,2]
[378156086,1754751051042,-428.99,0.00024931,2]
[378156087,1754751051052,-400.0,0.00024931,2]
[378156088,1754751051062,-542.21,0.00024931,2]
[378156089,1754751051073,-458.09688679,0.00024931,2]
[378156090,1754751051085,-400.0,0.00024931,2]
[378156091,1754751051095,-400.0,0.00024931,2]
[378156092,1754751051105,-400.0,0.00024931,2]
[378156093,1754751051115,-477.74756394,0.00024931,2]
[378156094,1754751051124,-459.35,0.00024931,2]
[378156095,1754751051135,-400.0,0.00024931,2]
[378156096,1754751051145,-473.07,0.00024931,2]
[378156097,1754751051154,-687.95,0.00024931,2]
[378156098,1754751051164,-400.0,0.00024931,2]
[378156099,1754751051174,-400.0,0.00024931,2]
[378156100,1754751051184,-400.0,0.00024931,2]
[378156101,1754751051193,-559.72,0.00024931,2]
[378156102,1754751051204,-400.0,0.00024931,2]
[378156103,1754751051214,-400.0,0.00024931,2]
[378156104,1754751051223,-477.82,0.00024931,2]
[378156105,1754751051233,-470.87,0.00024931,2]
[378156106,1754751051247,-400.0,0.00024931,2]
[378156107,1754751051263,-493.2,0.00024931,2]
[378156108,1754751051272,-567.4,0.00024931,2]
[378156109,1754751051281,-400.0,0.00024931,2]
[378156110,1754751051291,-560.12,0.00024931,2]
[378156111,1754751051300,-284.43791728,0.00024931,2]
[378156112,1754751051310,-400.0,0.00024931,2]
[378156113,1754751051320,-400.0,0.00024931,2]
[378156114,1754751051329,-400.0,0.00024931,2]
[378156115,1754751051339,-553.92,0.00024931,2]
[378156116,1754751051349,-431.31,0.00024931,2]
[378156117,1754751051358,-411.45,0.00024931,2]
[378156118,1754751051367,-504.22,0.00024931,2]
[378156119,1754751051377,-400.0,0.00024931,2]
[378156120,1754751051387,-689.0,0.00024931,2]
[378156121,1754751051397,-400.0,0.00024931,2]
[378156122,1754751051407,-637.96,0.00024931,2]
[378156123,1754751051417,-400.0,0.00024931,2]
[378156124,1754751051428,-400.0,0.00024931,2]
[378156125,1754751051439,-400.0,0.00024931,2]
[378156126,1754751051449,-814.53,0.00024931,2]
[378156127,1754751051459,-840.68,0.00024931,2]
[378156128,1754751051468,-400.0,0.00024931,2]
[378156129,1754751051478,-400.0,0.00024931,2]
[378156130,1754751051487,-400.0,0.00024931,2]
[378156131,1754751051497,-481.78,0.00024931,2]
[378156132,1754751051506,-461.09,0.00024931,2]
[378156133,1754751051515,-546.73,0.00024931,2]
[378156134,1754751051524,-400.0,0.00024931,2]
[378156135,1754751051534,-400.0,0.00024931,2]
[378156136,1754751051543,-400.0,0.00024931,2]
[378156137,1754751051553,-455.24,0.00024931,2]
[378156138,1754751051562,-475.8,0.00024931,2]
[378156139,1754751051571,-400.0,0.00024931,2]
[378156140,1754751051581,-737.63,0.00024931,2]
[378156141,1754751051590,-650.92,0.00024931,2]
[378156142,1754751051600,-1000.0,0.00024931,2]
[378156143,1754751051609,-400.0,0.00024931,2]
[378156144,1754751051619,-492.31122938,0.00024931,2]
[378156145,1754751051629,-1658.64,0.00024931,2]
[378156146,1754751051642,-400.0,0.00024931,2]
[378156147,1754751051651,-459.12,0.00024931,2]
[378156148,1754751051660,-400.0,0.00024931,2]
[378156149,1754751051670,-667.71,0.00024931,2]
[378156150,1754751051682,-539.7,0.00024931,2]
[378156151,1754751051691,-770.91,0.00024931,2]
[378156152,1754751051701,-473.62,0.00024931,2]
[378156153,1754751051713,-400.0,0.00024931,2]
[378156154,1754751051722,-400.0,0.00024931,2]
[378156155,1754751051732,-400.0,0.00024931,2]
[378156156,1754751051741,-466.47928141,0.00024931,2]
[378156157,1754751051750,-400.0,0.00024931,2]
[378156158,1754751051760,-748.68,0.00024931,2]
[378156159,1754751051770,-870.99,0.00024931,2]
[378156160,1754751051779,-528.64,0.00024931,2]
[378156161,1754751051788,-400.0,0.00024931,2]
[378156162,1754751051798,-2206.46,0.00024931,2]
[378156163,1754751051807,-400.0,0.00024931,2]
[378156164,1754751051817,-400.0,0.00024931,2]
[378156165,1754751051826,-400.0,0.00024931,2]
[378156166,1754751051836,-400.0,0.00024931,2]
[378156167,1754751051845,-798.04,0.00024931,2]
[378156168,1754751051854,-400.0,0.00024931,2]
[378156169,1754751051864,-400.0,0.00024931,2]
[378156170,1754751051874,-400.0,0.00024931,2]
[378156171,1754751051883,-671.59,0.00024931,2]
[378156172,1754751051893,-400.0,0.00024931,2]
[378156173,1754751051903,-455.31,0.00024931,2]
[378156174,1754751051913,-718.81,0.00024931,2]
[378156175,1754751051922,-400.0,0.00024931,2]
[378156176,1754751051932,-453.57,0.00024931,2]
[378156177,1754751051942,-764.28,0.00024931,2]
[378156178,1754751051951,-719.4,0.00024931,2]
[378156179,1754751051960,-448.15,0.00024931,2]
[378156180,1754751051970,-258.26820978,0.00024931,2]
[378156181,1754751051979,-400.0,0.00024931,2]
[378156182,1754751051989,-640.54,0.00024931,2]
[378156183,1754751052073,-415.25,0.00024931,2]
[378156184,1754751052082,-400.0,0.00024931,2]
[378156185,1754751052092,-400.0,0.00024931,2]
[378156186,1754751052101,-400.0,0.00024931,2]
[378156187,1754751052111,-400.0,0.00024931,2]
[378156188,1754751052120,-972.24,0.00024931,2]
[378156189,1754751052129,-400.0,0.00024931,2]
[378156190,1754751052139,-400.0,0.00024931,2]
[378156191,1754751052147,-400.0,0.00024931,2]
[378156192,1754751052156,-400.0,0.00024931,2]
[378156193,1754751052165,-478.75,0.00024931,2]
[378156194,1754751052175,-546.34,0.00024931,2]
[378156195,1754751052184,-400.0,0.00024931,2]
[378156196,1754751052193,-400.0,0.00024931,2]
[378156197,1754751052203,-283.99000526,0.00024931,2]
[378156198,1754751052212,-554.95,0.00024931,2]
[378156199,1754751052221,-400.0,0.00024931,2]
[378156200,1754751052230,-302.80143767,0.00024931,2]
[378156201,1754751052239,-577.37,0.00024931,2]
[378156202,1754751052254,-400.0,0.00024931,2]
[378156203,1754751052264,-400.0,0.00024931,2]
[378156204,1754751052274,-400.0,0.00024931,2]
[378156205,1754751052283,-417.82,0.00024931,2]
[378156206,1754751052293,-400.0,0.00024931,2]
[378156207,1754751052302,-400.0,0.00024931,2]
[378156208,1754751052311,-400.0,0.00024931,2]
[378156209,1754751052320,-289.00049111,0.00024931,2]
[378156210,1754751052329,-400.0,0.00024931,2]
[378156211,1754751052339,-809.12,0.00024931,2]
[378156212,1754751052348,-905.78,0.00024931,2]
[378156213,1754751052357,-400.0,0.00024931,2]
[378156214,1754751052366,-771.03,0.00024931,2]